Cogmind - Beta 14 @@@ ROGUE MODE // 2024.10.06 @ 21:27:25 Player: Kinga Result: Self-destructed Performance ------------- Evolutions (8) 4000 Regions Visited (13) 2600 Robots Destroyed (95) 475 Value Destroyed (2585) 2585 Prototype IDs (39) 780 Alien Tech Used (4) 800 Bonus (510) 510 TOTAL SCORE: 11750 Bonus ------- High Alert Combat Kills 6 Follower Combat Kills 463 Registered with UFD 300 Scanned by Researcher 500 Friendly Fire -759 Cogmind --------- Core Integrity 181/1450 Matter 123/300 Energy 39/450 System Corruption 5% Temperature Warm (161) Movement Core (250) Ox4 Location -2/Section 7 Parts ------- > --- POWER (2) -------- (None) > --- PROPULSION (7) --- (None) > --- UTILITY (12) ----- Energy Well Machine Analyzer Enhanced Optical Array Advanced Signal Interpreter Advanced System Shield > --- WEAPON (2) ------- Enhanced Force Lance > --- INVENTORY (5) ---- Matter Drive Core Cannon Improved Remote Datajack Peak State ------------ > --- POWER ------------ Matter Drive > --- PROPULSION ------- Xenon Bombardment Thruster Xenon Bombardment Thruster Biomechanical Wings Biomechanical Wings Field Propulsion Drive Impulse Thruster Impulse Thruster > --- UTILITY ---------- Advanced Heat Sink Medium Storage Unit Energy Well Machine Analyzer Enhanced Optical Array Advanced Sensor Array Advanced Signal Interpreter Advanced Melee Analysis Suite Advanced Hacking Suite Experimental Hacking Suite Improved System Shield Advanced System Shield > --- WEAPON ----------- Plasma Sword Force Lance > --- INVENTORY -------- Light Antimatter Reactor Improved Transmission Jammer Transdimensional Reconstructor Terrabomb Enhanced Quantum Rifle Core Cannon Improved Remote Datajack Enhanced Force Lance [Rating: 150] Favorites ----------- Power Ion Engine Engine Ion Engine Power Core Micro Nuclear Core Reactor Light Quantum Reactor Propulsion Armored Wheel Treads Light Treads Wheel Armored Wheel Flight Unit Biomechanical Wings Utility Large Storage Unit Device Improved Heat Sink Storage Large Storage Unit Processor Machine Analyzer Hackware Hacking Suite Protection Light Armor Plating Weapon Improved Medium Laser Energy Gun Improved Medium Laser Energy Cannon Advanced Beam Cannon Ballistic Gun Assault Rifle Impact Weapon Powered Hammer Slashing Weapon Plasma Sword Piercing Weapon Force Lance Build | -11 -10 -9 -9 -9 -9 -6 -5 -4 -3 -3 -2 -2 -2 ------- Run | Yrd Mat Mat Sto Rec Scr Fac Fac Fac Res Arm Res Qua Sec Slots Evolved 16 | . . 2 . . . 6 2 2 2 . 2 . . Power 1 | . . . . . . . . . 1 . . . . Propulsion 5 | . . . . . . 2 . 2 1 . . . . Utility 10 | . . 2 . . . 4 2 . . . 2 . . Weapon . | . . . . . . . . . . . . . . Parts Attached 144 | 6 2 30 9 4 1 30 21 6 2 8 5 11 9 Power 22 | 1 . 3 2 1 . 2 1 1 . 1 1 6 3 Engine 7 | 1 . 3 1 . . 1 . 1 . . . . . Core 8 | . . . 1 1 . 1 1 . . . . 4 . Reactor 7 | . . . . . . . . . . 1 1 2 3 Propulsion 40 | 2 . 9 . . . 14 6 2 2 3 . 2 . Treads 6 | 2 . 4 . . . . . . . . . . . Leg . | . . . . . . . . . . . . . . Wheel 4 | . . 4 . . . . . . . . . . . Hover . | . . . . . . . . . . . . . . Flight 30 | . . 1 . . . 14 6 2 2 3 . 2 . Utility 40 | 1 2 6 3 1 1 10 6 3 . 3 1 2 1 Device 12 | . 1 2 1 1 . 2 2 . . 2 . . 1 Storage 4 | 1 1 . . . . 1 . . . . . 1 . Processor 9 | . . . 1 . 1 1 3 . . 1 1 1 . Hackware 10 | . . . . . . 6 1 3 . . . . . Protection 5 | . . 4 1 . . . . . . . . . . Artifact . | . . . . . . . . . . . . . . Weapon 42 | 2 . 12 4 2 . 4 8 . . 1 3 1 5 Energy Gun 14 | 1 . 9 2 2 . . . . . . . . . Energy Cannon 5 | . . 1 2 . . . 1 . . . . . 1 Ballistic Gun 9 | 1 . 2 . . . 3 3 . . . . . . Ballistic Cannon . | . . . . . . . . . . . . . . Launcher . | . . . . . . . . . . . . . . Special Weapon . | . . . . . . . . . . . . . . Impact Weapon 5 | . . . . . . . 3 . . 1 1 . . Slashing Weapon 3 | . . . . . . 1 1 . . . 1 . . Piercing Weapon 6 | . . . . . . . . . . . 1 1 4 Special Melee Weapon . | . . . . . . . . . . . . . . Unidentified Prototypes 13 | . . 3 2 . . 2 1 1 . . . 3 1 Corrupted Parts 2 | . . . . . . 2 . . . . . . . System Corruption 6 | . . . . . . 6 . . . . . . . Parts Lost 44 | . . 5 4 1 . 6 5 1 1 6 . 1 14 Power 7 | . . 1 1 . . 2 2 1 . . . . . Propulsion 19 | . . 3 . . . 3 . . 1 5 . 1 6 Utility 14 | . . . 3 1 . . 2 . . 1 . . 7 Weapon 4 | . . 1 . . . 1 1 . . . . . 1 Highest Loss Streak 8 | . . 3 2 1 . 3 2 1 1 3 . 1 8 To Critical Strikes 1 | . . 1 . . . . . . . . . . . Average Slot Usage (%) 88 | . 94 95 91 87 64 88 92 97 90 96 78 91 60 Engine 5 | . 14 10 6 7 . . 1 1 6 . . . . Core 3 | . . . 4 3 11 5 2 2 . 2 . 2 . Treads 6 | . 28 17 . . . . . . . . . . . Wheel 7 | . . 3 22 22 22 . . . . . . . . Flight 9 | . . . . . . 25 23 31 31 32 21 27 15 Device 12 | . 9 22 16 14 11 7 4 5 4 6 8 8 3 Storage 9 | . 14 11 11 11 11 6 5 5 4 4 4 4 7 Processor 6 | . . . . . 9 8 22 16 14 12 13 16 16 Hackware 7 | . . . . . . 24 16 24 23 21 17 17 11 Protection 3 | . . 8 8 6 . . . . . . . . . Energy Gun 10 | . 14 19 21 22 . . . . . . . . . Ballistic Gun 2 | . 14 2 . . . 1 5 . . . . . . Slashing Weapon 1 | . . . . . . 4 2 5 4 4 4 3 . Peak Build Rating 150 | 6 8 21 25 23 21 57 79 99 108 121 106 150 137 Average Rating 39 | 4 7 17 21 21 18 45 69 95 102 115 98 127 94 On Entrance 55 | . 6 8 21 21 21 19 57 79 99 108 106 98 137 Naked Turns . | . . . . . . . . . . . . . . Heaviest Build 41 | 14 30 39 39 40 33 22 23 30 28 37 30 41 40 Greatest Support 45 | 40 40 40 24 24 24 24 24 38 36 43 31 45 39 Greatest Overweight (x) 3 | . . 3 1 1 1 . 1 . . 1 . . 1 Average Overweight (x) . | . . . 1 1 1 . . . . . . . . Largest Inventory Capacity 15 | 8 15 15 15 15 15 15 10 10 10 10 10 10 10 Average Capacity 12 | 7 11 15 15 15 15 10 10 10 10 10 10 10 9 Most Carried 15 | 4 9 15 15 15 15 14 10 10 10 10 9 10 10 Average Carried 11 | 2 6 14 14 14 14 9 9 8 9 8 7 8 8 Final Capacity 15 | 8 15 15 15 15 15 10 10 10 10 10 10 10 5 Final Carried 15 | 4 9 14 15 15 15 10 10 10 9 6 8 10 5 Class Distribution -------------------- 27% | Commander-Mutant 23% | Mutant 15% | Hacker-Sprinter 14% | Scavenger-Mutant 7% | Hacker-Scout 5% | Wizard-Sprinter 5% | Commander-Sprinter Dominant Class ---------------- Mutant | -10/Materials Scavenger-Mutant | -9/Materials Mutant | -9/Storage Commander-Mutant | -9/Recycling Commander-Mutant | -9/Scraptown Hacker-Sprinter | -6/Factory Hacker-Sprinter | -5/Factory Wizard-Sprinter | -4/Factory Wizard-Sprinter | -3/Research Wizard-Sprinter | -3/Armory Hacker-Scout | -2/Research Hacker-Scout | -2/Quarantine Hacker-Mutant | -2/Section 7 Resources | -11 -10 -9 -9 -9 -9 -6 -5 -4 -3 -3 -2 -2 -2 ----------- Run | Yrd Mat Mat Sto Rec Scr Fac Fac Fac Res Arm Res Qua Sec Matter Collected 1823 | 259 138 367 90 54 . 241 476 40 30 76 . 52 . Remotely . | . . . . . . . . . . . . . . Salvage Created 3954 | 70 407 975 602 202 . 295 635 90 124 381 . 125 48 Parts 200 | 2 30 60 39 6 . 11 25 2 8 6 . 8 3 Haulers Intercepted 11 | . . 4 3 . . . 2 1 1 . . . . Recyclers Shooed 3 | . 1 1 1 . . . . . . . . . . Parts Field Recycled . | . . . . . . . . . . . . . . Retrieved Matter . | . . . . . . . . . . . . . . Parts Self-Destructed . | . . . . . . . . . . . . . . Prevented . | . . . . . . . . . . . . . . Kills | -11 -10 -9 -9 -9 -9 -6 -5 -4 -3 -3 -2 -2 -2 ------- Run | Yrd Mat Mat Sto Rec Scr Fac Fac Fac Res Arm Res Qua Sec Combat Hostiles Destroyed 61 | . 10 19 13 1 . 2 10 . . 5 . . 1 Melee 3 | . . . . . . 2 . . . 1 . . . Guns 48 | . 7 18 12 1 . . 10 . . . . . . Cannons 1 | . . . . . . . . . . . . . 1 AOE 3 | . 3 . . . . . . . . . . . . Classes Destroyed 12 | 1 4 3 . . . 2 . . . . . 1 1 Worker 1 | . . . . . . 1 . . . . . . . Builder 2 | . 2 . . . . . . . . . . . . Hauler 11 | . . 4 3 . . . 2 1 1 . . . . Recycler 5 | 1 . 1 . 2 . 1 . . . . . . . Operator 5 | . 2 1 1 . . 1 . . . . . . . Watcher 6 | . . 1 . . . . 3 . 1 . . 1 . Swarmer 25 | . 3 7 3 . . . 7 . . 5 . . . Grunt 28 | . 7 7 8 . . . 3 . . 3 . . . Researcher 1 | . . . . . . . . . . . . 1 . Sentry 9 | . . 5 2 1 . 1 . . . . . . . Hunter 1 | . . . . . . 1 . . . . . . . Programmer 1 | . . . . . . . . . . . . . 1 Best Kill Streak 7 | 1 4 4 7 2 . 1 6 1 2 4 . 1 1 Combat Bots Only 6 | . 4 4 6 1 . 1 5 . . 4 . . 1 Max Kills in Single Turn 2 | 1 1 1 2 1 . 1 1 1 1 1 . 1 1 Gunslinging 1 | . . . 1 . . . . . . . . . . Exploded 1 | . 1 . . . . . . . . . . . . Melee 1 | . . . . . . 1 . . . 1 . . . Uniques/NPCs Destroyed . | . . . . . . . . . . . . . . Combat | -11 -10 -9 -9 -9 -9 -6 -5 -4 -3 -3 -2 -2 -2 -------- Run | Yrd Mat Mat Sto Rec Scr Fac Fac Fac Res Arm Res Qua Sec Hostile Shots Fired 666 | . 43 103 48 16 . 160 69 37 8 34 2 5 141 Missed 272 | . 11 27 12 5 . 80 28 20 6 19 1 3 60 Damage Taken 6166 | . 357 851 473 218 . 802 679 253 184 405 23 99 1822 Core 1902 | . 43 122 57 56 . 241 161 109 . 43 . . 1070 Absorbed by Shields 52 | . . . . 5 . . . 47 . . . . . Core Remaining (%) 80 | 100 82 . . . 41 71 83 90 . 96 . . . Volleys Fired 193 | 4 35 67 43 11 . 2 28 . . . . . 3 Largest 2 | 2 2 2 2 2 . 1 2 . . . . . 1 Hottest 300 | 60 60 112 112 112 . 28 85 . . . . . 300 Shots Fired 376 | 8 70 131 85 22 . 2 55 . . . . . 3 Gun 371 | 8 70 131 84 22 . 2 54 . . . . . . Cannon 5 | . . . 1 . . . 1 . . . . . 3 Launcher . | . . . . . . . . . . . . . . Special . | . . . . . . . . . . . . . . Kinetic 113 | 4 35 18 . . . 2 54 . . . . . . Thermal 217 | . . 106 85 22 . . 1 . . . . . 3 Explosive . | . . . . . . . . . . . . . . Electromagnetic 46 | 4 35 7 . . . . . . . . . . . Robot Hit Streak 13 | 2 9 13 8 12 . 2 10 . . . . . 11 Robot Miss Streak 6 | 1 5 6 3 4 . . 2 . . . . . 2 Penetration Max . | . . . . . . . . . . . . . . Secondary Targets 5 | . 1 . 3 . . . 1 . . . . . . Max Gunslinging Chain 1 | . 1 . 1 . . . 1 . . . . . . Shots Hit Robots 295 | 5 36 82 57 16 . 24 45 3 5 9 . 3 10 Core Hits 114 | 2 20 33 20 4 . 6 21 1 2 2 . 2 1 Critical Kills . | . . . . . . . . . . . . . . Critical Parts Destroyed 4 | . . . . . . . 2 . . 1 . . 1 Critical Strikes 18 | . . 8 2 3 . . 2 . 1 1 . . 1 Burn 13 | . . 8 2 3 . . . . . . . . . Destroy 2 | . . . . . . . 1 . . . . . 1 Smash 2 | . . . . . . . 1 . . 1 . . . Sever 1 | . . . . . . . . . 1 . . . . Melee Attacks 108 | . . . . . . 34 8 11 5 22 2 14 12 Impact 19 | . . . . . . . 8 . . 10 1 . . Slashing 66 | . . . . . . 34 . 11 5 12 1 3 . Piercing 23 | . . . . . . . . . . . . 11 12 Sneak Attacks 12 | . . . . . . 2 1 1 1 6 . 1 . Combat Hostiles 3 | . . . . . . 1 . . . 2 . . . Follow-up Attacks 1 | . . . . . . . . . . . . 1 . Damage Inflicted 7770 | 63 663 1400 1005 291 . 610 1302 245 347 873 1 231 739 Guns 4143 | 63 523 1400 1005 291 . 41 820 . . . . . . Cannons 250 | . . . . . . . . . . . . . 250 Explosions 131 | . 131 . . . . . . . . . . . . Melee 3236 | . . . . . . 569 482 245 347 873 . 231 489 Ramming 10 | . 9 . . . . . . . . . 1 . . Kinetic 1259 | 35 192 171 . . . 41 820 . . . . . . Thermal 2861 | . 131 1184 1005 291 . . . . . . . . 250 Explosive . | . . . . . . . . . . . . . . Electromagnetic 404 | 28 331 45 . . . . . . . . . . . Impact 1006 | . . . . . . . 482 . . 524 . . . Slashing 1555 | . . . . . . 569 . 245 347 349 . 45 . Piercing 675 | . . . . . . . . . . . . 186 489 Highest Corruption 6 | . . 2 2 3 3 6 . . 1 1 . . 5 Average Corruption 2 | . . 2 2 2 3 5 . . 1 1 . . 3 Corruption Purged . | . . . . . . . . . . . . . . Corruption Blocked . | . . . . . . . . . . . . . . Effects 53 | . . 11 4 13 9 13 . . . 1 . . 2 Message Errors 13 | . . 3 . 3 2 5 . . . . . . . Matter Fused 7 | . . 2 . 2 1 2 . . . . . . . Heat Flow Errors 8 | . . 2 2 3 . . . . . . . . 1 Energy Discharges 8 | . . 1 1 2 2 2 . . . . . . . Parts Rejected 2 | . . . . . . 1 . . . . . . 1 Parts Fused 1 | . . . . . 1 . . . . . . . . Data Loss (minor) 9 | . . 1 1 2 1 3 . . . 1 . . . Data Loss (major) 2 | . . . . . 2 . . . . . . . . Alerts 2 | . . 1 . 1 . . . . . . . . . Weapon Failures 1 | . . 1 . . . . . . . . . . . Overload Shots . | . . . . . . . . . . . . . . Overflow Damage 738 | . . . . . . 10 126 16 19 340 . . 227 Projectiles 200 | . . . . . . . . . . 35 . . 165 Explosions . | . . . . . . . . . . . . . . Melee 538 | . . . . . . 10 126 16 19 305 . . 62 Knockbacks 5 | . . . . . . . 2 . . 3 . . . Impact 5 | . . . . . . . 2 . . 3 . . . Kinetic . | . . . . . . . . . . . . . . Secondary . | . . . . . . . . . . . . . . Self-Inflicted Damage . | . . . . . . . . . . . . . . Shots . | . . . . . . . . . . . . . . Rammed 2 | . . . . . . . . . 1 . 1 . . Targets Rammed 4 | . 2 . . . . . . . 1 . 1 . . Kicked . | . . . . . . . . . . . . . . Crushed 2 | . 2 . . . . . . . . . . . . Highest Temperature 635 | . 24 151 218 240 . 225 18 . 15 38 . . 635 Average Temperature 87 | . 12 69 30 66 . 111 13 . 7 14 . . 294 Received Heat Transfer 1648 | . 177 291 219 41 . 156 108 21 9 36 . 9 581 Effects 6 | . . . . . . . . . . . . . 6 Energy Bleed 3 | . . . . . . . . . . . . . 3 Interference 2 | . . . . . . . . . . . . . 2 Matter Decay 1 | . . . . . . . . . . . . . 1 Siege Activations . | . . . . . . . . . . . . . . Robots Corrupted 9 | . . . . . . . 3 . . 6 . . . Combat Hostiles 4 | . . . . . . . . . . 4 . . . Parts Fried 12 | . . . . . . . 4 . . 8 . . . Impact Corruptions 15 | . . . . . . . 5 . . 10 . . . Robots Melted 2 | . . 1 1 . . . . . . . . . . Combat Hostiles 2 | . . 1 1 . . . . . . . . . . Parts Melted 20 | . . 14 4 2 . . . . . . . . . Heat Transferred 6427 | . 100 3145 2331 851 . . . . . . . . . Parts Sabotaged . | . . . . . . . . . . . . . . Parts Stolen . | . . . . . . . . . . . . . . Parts Stripped . | . . . . . . . . . . . . . . Power Chain Reactions 3 | . 3 . . . . . . . . . . . . Alert | -11 -10 -9 -9 -9 -9 -6 -5 -4 -3 -3 -2 -2 -2 ------- Run | Yrd Mat Mat Sto Rec Scr Fac Fac Fac Res Arm Res Qua Sec Peak Influence 584 | 5 205 350 584 280 . 132 427 232 276 372 167 211 445 Initial 152 | . 3 46 139 149 . . 53 142 77 152 134 102 65 Average 203 | 1 121 225 378 214 . 72 280 190 132 259 148 131 249 Maximum Alert Level 2 | . 1 1 2 1 . . 2 1 1 1 . 1 2 Low Security (%) 49 | 100 70 31 11 43 . 100 18 59 87 32 100 85 47 Level 1 43 | . 29 68 42 56 . . 56 40 12 67 . 14 30 Level 2 7 | . . . 46 . . . 25 . . . . . 21 Level 3 . | . . . . . . . . . . . . . . Level 4 . | . . . . . . . . . . . . . . Level 5 . | . . . . . . . . . . . . . . High Security . | . . . . . . . . . . . . . . Max Security . | . . . . . . . . . . . . . . Squads Dispatched 19 | . 3 1 1 . . 2 4 2 1 3 . . 2 Investigation 6 | . 1 . . . . 1 3 1 . . . . . Extermination . | . . . . . . . . . . . . . . Reinforcement 13 | . 2 1 1 . . 1 1 1 1 3 . . 2 Assault . | . . . . . . . . . . . . . . Garrison . | . . . . . . . . . . . . . . Intercept . | . . . . . . . . . . . . . . Searches Triggered . | . . . . . . . . . . . . . . Construction Impeded . | . . . . . . . . . . . . . . Haulers Reinforced 2 | . . . . . . . 1 . 1 . . . . Active Scanning Responses . | . . . . . . . . . . . . . . Cargo Convoy Interrupts . | . . . . . . . . . . . . . . Stealth | -11 -10 -9 -9 -9 -9 -6 -5 -4 -3 -3 -2 -2 -2 --------- Run | Yrd Mat Mat Sto Rec Scr Fac Fac Fac Res Arm Res Qua Sec Distress Signals 9 | . 1 1 1 . . . 1 . 1 . . . 4 Communications Jammed . | . . . . . . . . . . . . . . Distress Signals . | . . . . . . . . . . . . . . Times Spotted 200 | . 14 25 20 6 . 17 28 12 13 31 1 4 29 Peak Tracking Total 23 | . 3 4 4 2 . 7 6 5 10 17 2 1 23 Tactical Retreats 21 | . . 3 1 . . 3 3 1 2 3 . . 5 Traps | -11 -10 -9 -9 -9 -9 -6 -5 -4 -3 -3 -2 -2 -2 ------- Run | Yrd Mat Mat Sto Rec Scr Fac Fac Fac Res Arm Res Qua Sec Traps Triggered 10 | . 1 3 . . . 1 1 2 2 . . . . Indirectly . | . . . . . . . . . . . . . . Trap Hack Attempts . | . . . . . . . . . . . . . . Triggered . | . . . . . . . . . . . . . . Disarmed . | . . . . . . . . . . . . . . Reprogrammed . | . . . . . . . . . . . . . . Reused . | . . . . . . . . . . . . . . Traps Extracted . | . . . . . . . . . . . . . . Installed . | . . . . . . . . . . . . . . Triggered . | . . . . . . . . . . . . . . Machines | -11 -10 -9 -9 -9 -9 -6 -5 -4 -3 -3 -2 -2 -2 ---------- Run | Yrd Mat Mat Sto Rec Scr Fac Fac Fac Res Arm Res Qua Sec Machines Disabled 9 | . . . 1 . . . 1 . . 2 . 3 2 Max in Single Turn 1 | . . . 1 . . . 1 . . 1 . 1 1 Garrison Access 3 | . . . . . . 1 . . 1 . . 1 . Machines Repaired . | . . . . . . . . . . . . . . Machines Dismantled . | . . . . . . . . . . . . . . Machines Sabotaged . | . . . . . . . . . . . . . . Overloaded Fab Kills . | . . . . . . . . . . . . . . Hacking | -11 -10 -9 -9 -9 -9 -6 -5 -4 -3 -3 -2 -2 -2 --------- Run | Yrd Mat Mat Sto Rec Scr Fac Fac Fac Res Arm Res Qua Sec Machines Accessed 59 | . 2 3 5 1 2 12 9 5 2 4 2 8 4 Terminals 43 | . 2 3 5 1 . 8 6 5 . 2 1 6 4 Fabricators 7 | . . . . . . 3 2 . . 1 1 . . Repair Stations 3 | . . . . . . . 1 . 1 1 . . . Recycling Units . | . . . . . . . . . . . . . . Scanalyzers 1 | . . . . . . . . . . . . 1 . Garrison Access 3 | . . . . . . 1 . . 1 . . 1 . Total Hacks 180 | . 4 4 11 2 13 32 22 21 2 19 6 36 8 Successful 117 | . 1 3 4 1 13 21 11 15 2 16 3 22 5 Failed 63 | . 3 1 7 1 . 11 11 6 . 3 3 14 3 Catastrophic 8 | . 1 1 1 . . 2 . 2 . . . . 1 Database Lockouts . | . . . . . . . . . . . . . . Manual 60 | . 4 2 4 . . 11 8 11 . 6 5 8 1 Terminals 141 | . 4 4 11 2 . 22 15 21 . 15 5 34 8 Fabricators 17 | . . . . . . 8 5 . . 3 1 . . Repair Stations 4 | . . . . . . . 2 . 1 1 . . . Recycling Units . | . . . . . . . . . . . . . . Scanalyzers 1 | . . . . . . . . . . . . 1 . Garrison Access 4 | . . . . . . 2 . . 1 . . 1 . Terminal Hacks 96 | . 1 3 4 1 13 13 6 15 . 14 2 19 5 Record 14 | . . . . . 8 1 . . . 1 . 2 2 Part Schematic 2 | . . . . . . 2 . . . . . . . Robot Analysis 11 | . . . . . 5 2 1 1 . 1 . 1 . Prototype ID Bank 10 | . . 1 . 1 . 1 1 2 . . . 4 . Open Door 2 | . . . 2 . . . . . . . . . . Level Access Points 4 | . . . . . . 1 . 1 . 1 . 1 . Branch Access Points 4 | . . . 1 . . . . . . 1 1 1 . Emergency Access Points 2 | . . . . . . . . . . 2 . . . Terminal Index 2 | . . . . . . . . . . . 1 1 . Fabricator Index 2 | . . . . . . . 1 1 . . . . . Garrison Index 1 | . . . . . . . . . . 1 . . . Alert Level 6 | . . . . . . 2 1 1 . 1 . 1 . Unreport Threat 3 | . . . . . . . . 1 . 1 . 1 . Locate Traps 2 | . . . . . . . . 1 . 1 . . . Dispatch Records 1 | . . . . . . . . . . . . 1 . Security Status 1 | . . . . . . . . 1 . . . . . Surveillance Status 1 | . . . . . . . . . . . . 1 . Patrol Status 2 | . . . . . . . . 1 . . . 1 . Transport Status 1 | . . 1 . . . . . . . . . . . Investigation Status 2 | . . . . . . 1 . . . 1 . . . Garrison Status 1 | . . . . . . . . 1 . . . . . Recall Investigation 5 | . . . . . . 1 1 2 . 1 . . . Recall Reinforcements 2 | . . . . . . . . 1 . 1 . . . Hauler Manifests 6 | . 1 1 1 . . 1 1 . . . . 1 . Registered Prototypes 1 | . . . . . . . . . . 1 . . . Zone Layout 6 | . . . . . . 1 . 1 . . . 3 1 Activate Exoskeleton 2 | . . . . . . . . . . . . . 2 Fabricator Hacks 12 | . . . . . . 7 3 . . 1 1 . . Network Status 3 | . . . . . . 1 . . . 1 1 . . Load Schematic 5 | . . . . . . 3 2 . . . . . . Build 4 | . . . . . . 3 1 . . . . . . Repair Station Hacks 3 | . . . . . . . 1 . 1 1 . . . Refit 3 | . . . . . . . 1 . 1 1 . . . Recycling Unit Hacks . | . . . . . . . . . . . . . . Scanalyzer 1 | . . . . . . . . . . . . 1 . Insert Component 1 | . . . . . . . . . . . . 1 . Garrison Access Hacks 3 | . . . . . . 1 . . 1 . . 1 . Seal Access 3 | . . . . . . 1 . . 1 . . 1 . Unauthorized Hacks 2 | . . . . . . . 1 . . . . 1 . Terminals 2 | . . . . . . . 1 . . . . 1 . Assimilate 2 | . . . . . . . 1 . . . . 1 . Fabricators . | . . . . . . . . . . . . . . Repair Stations . | . . . . . . . . . . . . . . Recycling Units . | . . . . . . . . . . . . . . Scanalyzers . | . . . . . . . . . . . . . . Garrison Access . | . . . . . . . . . . . . . . Data Cores Recovered 1 | . . . . . . 1 . . . . . . . Used . | . . . . . . . . . . . . . . Hacking Detections 36 | . 1 1 3 . . 8 8 5 . 3 1 4 2 Full Trace Events 5 | . . . . . . 1 3 1 . . . . . Feedback Events . | . . . . . . . . . . . . . . Feedback Blocked . | . . . . . . . . . . . . . . Robot Schematics Acquired 1 | . . . . . . . . . . . . 1 . Robots Built . | . . . . . . . . . . . . . . Authchips . | . . . . . . . . . . . . . . Time . | . . . . . . . . . . . . . . Total Robot Build Rating . | . . . . . . . . . . . . . . Part Schematics Acquired 4 | . . . . . . 2 . . . . . 2 . Parts Built 6 | . . . . . . 4 2 . . . . . . Authchips 2 | . . . . . . 2 . . . . . . . Time 309 | . . . . . . 192 117 . . . . . . Total Part Build Rating 36 | . . . . . . 22 14 . . . . . . Parts Repaired . | . . . . . . . . . . . . . . Time . | . . . . . . . . . . . . . . Parts Recycled . | . . . . . . . . . . . . . . Recycled Matter . | . . . . . . . . . . . . . . Retrieved Matter . | . . . . . . . . . . . . . . Retrieved Components . | . . . . . . . . . . . . . . Parts Scanalyzed . | . . . . . . . . . . . . . . Part Schematics Acquired . | . . . . . . . . . . . . . . Parts Damaged . | . . . . . . . . . . . . . . Bothacking | -11 -10 -9 -9 -9 -9 -6 -5 -4 -3 -3 -2 -2 -2 ------------ Run | Yrd Mat Mat Sto Rec Scr Fac Fac Fac Res Arm Res Qua Sec Used RIF Installer . | . . . . . . . . . . . . . . Robots Hacked . | . . . . . . . . . . . . . . Non-combat . | . . . . . . . . . . . . . . Combat . | . . . . . . . . . . . . . . Robot Hacks Applied . | . . . . . . . . . . . . . . Relay Couplers Released . | . . . . . . . . . . . . . . Fabnet Peak Effective % . | . . . . . . . . . . . . . . Robots Rewired 14 | . . . . 12 . . . . . 2 . . . Allies Hacked . | . . . . . . . . . . . . . . Hacks Repelled . | . . . . . . . . . . . . . . Allies | -11 -10 -9 -9 -9 -9 -6 -5 -4 -3 -3 -2 -2 -2 -------- Run | Yrd Mat Mat Sto Rec Scr Fac Fac Fac Res Arm Res Qua Sec Total Allies 36 | . . . 10 12 . . 1 . . 12 . 1 . Largest Group 21 | . . . 10 21 20 19 1 . . 10 . 1 . Highest-Rated Group 481 | . . . 88 250 239 224 10 . . 481 . 26 . Highest-Rated Ally 58 | . . . 16 34 34 34 10 . . 58 . 26 . Total Orders . | . . . . . . . . . . . . . . Ally Attacks 107 | . . . 2 50 . 23 . . . 32 . . . Total Damage 1939 | . . . 22 543 . 651 . . . 723 . . . Kills 19 | . . . 1 10 . 4 . . . 4 . . . Allies Corrupted 2 | . . . . . . . . . . 2 . . . Allies Melted . | . . . . . . . . . . . . . . Intel | -11 -10 -9 -9 -9 -9 -6 -5 -4 -3 -3 -2 -2 -2 ------- Run | Yrd Mat Mat Sto Rec Scr Fac Fac Fac Res Arm Res Qua Sec Robot Analysis Total 11 | . . . . . 5 2 1 1 . 1 . 1 . Derelict Logs Recovered . | . . . . . . . . . . . . . . Drone Launches . | . . . . . . . . . . . . . . Drone Recoveries . | . . . . . . . . . . . . . . Exploration | -11 -10 -9 -9 -9 -9 -6 -5 -4 -3 -3 -2 -2 -2 ------------- Run | Yrd Mat Mat Sto Rec Scr Fac Fac Fac Res Arm Res Qua Sec Turns Passed 5489 | 86 525 1170 423 744 607 588 496 187 48 176 69 207 163 Spaces Moved 6429 | 41 251 576 240 535 572 890 1145 447 155 479 195 612 291 Core 3 | 3 . . . . . . . . . . . . . Treads 747 | 38 251 458 . . . . . . . . . . . Legs . | . . . . . . . . . . . . . . Wheels 1465 | . . 118 240 535 572 . . . . . . . . Hover . | . . . . . . . . . . . . . . Flight 4214 | . . . . . . 890 1145 447 155 479 195 612 291 Fastest Speed 7 | 50 160 105 105 105 105 29 28 7 15 15 29 22 25 Average Speed 60 | 151 160 152 105 105 105 30 29 25 20 18 29 23 33 Slowest Speed 240 | 160 160 240 105 105 105 32 97 34 25 103 29 29 110 Overloaded Moves 7 | . . . . . . . . 3 . 4 . . . Propulsion Burnouts . | . . . . . . . . . . . . . . Robots Hopped 39 | . . . . . . 10 10 . 3 7 . 1 8 Cave-ins Triggered . | . . . . . . . . . . . . . . Teleports 1 | . . . . . . . . . . . . . 1 Exploration Rate (%) 37 | 4 51 48 39 94 57 26 35 20 11 30 8 62 40 Regions Visited 13 Branch Regions 6 Pre-discovered Areas 1 | . . . . . 1 . . . . . . . . Known Exits Taken 6 | . . . 1 . . 1 . 1 . 1 1 1 . Unknown Exits Taken 7 | 1 1 1 . 1 1 . 1 . 1 . . . . Scrap Searched 1 | . . . . . 1 . . . . . . . . Spaces Dug 22 | . . . . . . 4 1 8 . 3 1 4 1 Terrain Destroyed 28 | . 6 . . . . 4 1 8 . 3 1 4 1 Melee 21 | . . . . . . 4 . 8 . 3 1 4 1 Projectile 1 | . . . . . . . 1 . . . . . . AOE 6 | . 6 . . . . . . . . . . . . Terrain Rammed . | . . . . . . . . . . . . . . Walls Destroyed . | . . . . . . . . . . . . . . Machines Disabled . | . . . . . . . . . . . . . . Actions | -11 -10 -9 -9 -9 -9 -6 -5 -4 -3 -3 -2 -2 -2 --------- Run | Yrd Mat Mat Sto Rec Scr Fac Fac Fac Res Arm Res Qua Sec Total 7401 | 54 303 730 324 695 579 1122 1221 502 161 533 206 646 325 Wait 294 | . 7 29 25 36 3 154 11 2 . 19 . 6 2 Move 6341 | 40 250 575 239 534 571 869 1124 446 149 464 195 609 276 Hop 38 | . . . . . . 10 10 . 3 7 . 1 7 Pick Up 63 | 4 6 16 4 2 . 12 6 4 1 5 . 3 . Fast Attach 51 | 6 1 9 4 1 1 8 9 2 . 2 2 5 1 Attach 46 | . . 5 1 . . 14 2 4 2 5 2 2 9 Detach 20 | . . . . . 2 1 3 1 . 1 4 1 7 Swap 50 | . 1 16 4 3 . 8 10 . . 1 1 5 1 Drop 60 | . 1 13 4 3 2 10 10 4 1 7 1 3 1 Fire 193 | 4 35 67 43 11 . 2 28 . . . . . 3 Melee 100 | . . . . . . 34 8 11 5 18 1 11 12 Ram . | . . . . . . . . . . . . . . Kick . | . . . . . . . . . . . . . . Crush 2 | . 2 . . . . . . . . . . . . Escape Stasis 34 | . . . . . . . . 28 . . . . 6 Rewire 109 | . . . . 105 . . . . . 4 . . . Trap . | . . . . . . . . . . . . . . Miscellaneous . | . . . . . . . . . . . . . . Route ------- -11/Scrapyard -10/Materials (discovered 3 exits: *Mat / [*Min x2]) -9/Materials (discovered 2 exits: [*Mat] / *Sto) -9/Storage -9/Recycling (discovered 2 exits: [*Fac] / *Scr) -9/Scraptown -6/Factory (discovered 4 exits: *Fac x4) -5/Factory (discovered 2 exits: *Fac / [*Upp]) -4/Factory (discovered 4 exits: *Res x4) -3/Research -3/Armory (discovered 2 exits: *Res x2) -2/Research (discovered 2 exits: *Qua x2) -2/Quarantine (discovered 2 exits: Acc / *Sec) -2/Section 7 History --------- Turn | Location | Event 51 | -11/Scrapyard | Discovered new exit (range 16) 87 | -11/Scrapyard | Entered Materials 300 | -10/Materials | Build established: Mutant 350 | -10/Materials | Discovered new exit (range 16) 477 | -10/Materials | Discovered new exit (range 16) 520 | -10/Materials | Discovered new exit (range 13) 612 | -10/Materials | Entered another Materials area 612 | -9/Materials | Evolved 2 slots: Utility x2 784 | -9/Materials | Lost 3 parts (2n1w) 870 | -9/Materials | Discovered new exit (range 9) 1037 | -9/Materials | Discovered new exit (range 6) 1229 | -9/Materials | Build established: Scavenger-Mutant 1782 | -9/Materials | Entered Storage 2027 | -9/Storage | Build established: Mutant 2112 | -9/Storage | Assisted by bots powering up and referring to "LRC-V3" 2114 | -9/Storage | Identified exit to Recycling 2182 | -9/Storage | Used back door to open Recycling access 2205 | -9/Storage | Entered Recycling 2205 | -9/Recycling | Accompanied by 10 allies 2375 | -9/Recycling | Build established: Commander-Mutant 2617 | -9/Recycling | Core integrity fell below 50% 2772 | -9/Recycling | Discovered new exit (range 16) 2886 | -9/Recycling | Scanned before Scraplab entrance 2900 | -9/Recycling | Entered Scraplab 2909 | -9/Recycling | Discovered new exit (range 3) 2949 | -9/Recycling | Entered Scraptown 2949 | -9/Scraptown | Accompanied by 20 allies 3083 | -9/Scraptown | Heard Great Nut preacher, LISTEN AND RECITE! 3119 | -9/Scraptown | Visited Comm Corps 3152 | -9/Scraptown | Visited Cave Peace 3190 | -9/Scraptown | Visited UFD Registry 3190 | -9/Scraptown | Registered with UFD as "Novasink" 3230 | -9/Scraptown | Visited LU-1G1's Boring Crew 3275 | -9/Scraptown | Visited Science Testing Area 3292 | -9/Scraptown | Visited Junk Repository 3329 | -9/Scraptown | Visited Analyses Database 3347 | -9/Scraptown | Visited Research Penetration Think Tank 3370 | -9/Scraptown | Visited Derelict Rescue Squad 3404 | -9/Scraptown | Visited Chapter 10 3451 | -9/Scraptown | Visited Science Guys 3543 | -9/Scraptown | Discovered new exit (range 3) 3549 | -9/Scraptown | System corruption cleaned by C-Scrubber 3556 | -9/Scraptown | Entered Factory 3556 | -6/Factory | Accompanied by 19 allies 3556 | -6/Factory | Evolved 6 slots: Propulsion x2, Utility x4 3595 | -6/Factory | Spotted B-75 Beast 3690 | -6/Factory | Lost 5 allies 3771 | -6/Factory | Fabricated Cld. VTOL Module (x1) 3839 | -6/Factory | Fabricated Cld. VTOL Module (x1) 3889 | -6/Factory | Lost 6 allies 3922 | -6/Factory | Identified exit to Factory 4077 | -6/Factory | Fabricated Adv. Surge Thruster (x2) 4112 | -6/Factory | Lost 3 parts (1p1n1w) 4144 | -6/Factory | Entered another Factory area 4144 | -5/Factory | Evolved 2 slots: Utility x2 4233 | -5/Factory | Build established: Hacker-Sprinter 4331 | -5/Factory | Fabricated Adv. Surge Thruster? 4436 | -5/Factory | Discovered new exit (range 3) 4479 | -5/Factory | Discovered new exit (range 9) 4503 | -5/Factory | Spotted B-75 Beast 4640 | -5/Factory | Entered another Factory area 4640 | -4/Factory | Evolved 2 slots: Propulsion x2 4650 | -4/Factory | Identified exit to Research 4681 | -4/Factory | Spotted B-86 Titan 4685 | -4/Factory | Found Prototype Hackware 4686 | -4/Factory | Identified Exp. Hacking Suite 4741 | -4/Factory | Spotted B-86 Titan 4827 | -4/Factory | Entered Research 4827 | -3/Research | Evolved 2 slots: Power x1, Propulsion x1 4852 | -3/Research | Spotted B-86 Titan 4869 | -3/Research | Discovered new exit (range 17) 4875 | -3/Research | Entered Armory 4908 | -3/Armory | Assisted by bots powering up and referring to "LRC-V3" 4974 | -3/Armory | Build established: Wizard-Sprinter 4976 | -3/Armory | Murdered 3 allies 4977 | -3/Armory | Identified exit to Research 5014 | -3/Armory | Lost 3 parts (2n1u) 5039 | -3/Armory | Lost 6 allies 5051 | -3/Armory | Spotted B-86 Titan 5051 | -3/Armory | Entered Research 5051 | -2/Research | Evolved 2 slots: Utility x2 5089 | -2/Research | Identified exit to Quarantine 5104 | -2/Research | Spotted B-90 Cyclops 5120 | -2/Research | Entered Quarantine 5180 | -2/Quarantine | Found Alien Energy Cannon 5203 | -2/Quarantine | Identified Core Cannon 5235 | -2/Quarantine | Identified exit to Access 5253 | -2/Quarantine | Found Alien Artifact 5253 | -2/Quarantine | Identified Terrabomb 5253 | -2/Quarantine | Used Terrabomb 5260 | -2/Quarantine | Found Terrabomb 5274 | -2/Quarantine | Found Alien Reactor 5274 | -2/Quarantine | Identified Matter Drive 5286 | -2/Quarantine | Found Alien Artifact 5306 | -2/Quarantine | Spotted Fortress 5326 | -2/Quarantine | Discovered new exit (range 6) 5327 | -2/Quarantine | Identified exit to Section 7 5327 | -2/Quarantine | Entered Section 7 5329 | -2/Section 7 | Spotted S7 Guard 5331 | -2/Section 7 | Build established: Hacker-Scout 5362 | -2/Section 7 | Spotted B-90 Cyclops 5365 | -2/Section 7 | Scanned by Researcher 5374 | -2/Section 7 | Identified Transdimensional Reconstructor 5374 | -2/Section 7 | Warped through subspace 5398 | -2/Section 7 | Spotted S7 Guard 5401 | -2/Section 7 | Used Terrabomb 5405 | -2/Section 7 | Spotted Alpha 7 5408 | -2/Section 7 | Spotted Alpha 7 5414 | -2/Section 7 | Spotted B-99 Colossus 5445 | -2/Section 7 | Lost 8 parts (3n4u1w) 5470 | -2/Section 7 | Core integrity fell below 50% 5485 | -2/Section 7 | Core integrity fell below 20% 5490 | -2/Section 7 | Self-destructed Last Messages --------------- 05470_ Impulse Thruster destroyed. 05470_ Destroyed Adv. Heat Sink. 05471_ Biomechanical Wings destroyed. 05472_ System corrupted: Enh. Force Lance rejected. 05472_ Penetrated by Slug. 05473_ Overheating: Energy bleed (-4). 05473_ Acquired Enh. Force Lance. 05474_ Penetrated by Slug. 05476_ Exp. Hacking Suite destroyed. 05476_ Penetrated by Slug. 05478_ Adv. Melee Analysis Suite destroyed. 05478_ Slug penetrates Machine. 05479_ Med. Storage Unit destroyed. 05481_ Destroyed Gamma Rifle. 05484_ Penetrated by Slug. 05488_ P-80 Master destroyed. 05488_ Slug penetrates Machine. 05488_ Penetrated by Slug. 05490_ System corrupted: Heat flow error (+161). [Achievement: I Think I Know What's Going On] Map ----- +----------------------------------------------------+ | ?????????????????????????????????????????????????? | | ?????????????????????????????????????????????????? | | ?????????????????????????????????????????????????? | | ?????????????????????????????????????????????????? | | ?????????? ???????????????? ??????????????????? | | ?????????? ??????????????? ?????????????????? | | """""""??? ?????????????" "????????????????? | | " " " """ ???????????? "???????????????? | | " " " ""???????????" ? ??????? | | " " "" ???????????" ????? | | "?????""""""" ? ???? | | ?????? ?? ??? | | ???????? ??? ?? | | ????????? ???? ? | | "??????????? """?? | | ???????????" ??? | | """"""""""" "???? | | "???? | | " """"" "" | | " "? | | """ ""? | | " """ | | "" | | 7 = "" | | 7 *%! ! "" | | /@=%! ""? | | "" " * """"""????? | | """"""""""""""""""""""" ;;; """"""????? | | """""""""""""""""""""""" """# ; """"????? | | ##############################;;##+++########????? | | ?????????????????????????????## "" """#????????? | | ??????????????????????????????#""" """#????????? | | ??????????????????????????????#""" """#????????? | | ??????????????????????????????#""" """#????????? | | ??????????????????????????????#""" """#????????? | | ??????????????????????????????#""" """#????????? | | ??????????????????????????????#"" ""#????????? | | ??????????????????????????????#" "#????????? | | ??????????????????????????????#" "#????????? | | ??????????????????????????????#" "#????????? | | ??????????????????????????????#"" T"#????????? | | ??????????????????????????????#" " " "#????????? | | ??????????????????????????????#" " " "#????????? | | ??????????????????????????????#" "#" "#????????? | | ??????????????????????????????#"""###"""#????????? | | ??????????????????????????????####??#####????????? | | ?????????????????????????????????????????????????? | | ?????????????????????????????????????????????????? | | ?????????????????????????????????????????????????? | | ?????????????????????????????????????????????????? | +----------------------------------------------------+ Best States ------------- Heat Dissipation 78 Energy Generation 41 Energy Capacity 450 Matter Stores 300 Matter Capacity 300 Sight Range 22 Robot Scan Range 16 Terrain Scan Density 10 Jamming Range 14 Armor Coverage 150 Evasion (%) 67 Melee Accuracy 22 Recoil Reduction 2 Offensive Hacking 52 Defensive Hacking 26 Authchip Count 2 Item Schematics ----------------- Cld. VTOL Module | -6/Factory | Hacked Adv. Surge Thruster | -6/Factory | Hacked Enh. Gamma Bomb Array | -2/Quarantine | Archive Exp. Core Analyzer | -2/Quarantine | Archive Robot Schematics ------------------ E-15 Imp | -2/Quarantine | Archive Fabricated ------------ Cld. VTOL Module | x1 | -6/Factory | Authchip Cld. VTOL Module | x1 | -6/Factory | Authchip Adv. Surge Thruster | x2 | -6/Factory Adv. Surge Thruster | x2 | -5/Factory Alien Tech Used ----------------- Terrabomb Matter Drive Transdimensional Reconstructor Core Cannon Achievements -------------- I Think I Know What's Going On Challenges ------------ None Game ------ Seed MappingSurgeCompanion Manual? 0 Play Time 01:38:28 Cumulative 117.6 hours Start 2024.10.06 @ 19:48:40 End 2024.10.06 @ 21:27:25 Sessions 3 Manual Loads 0 Difficulty Rogue Special Mode None Game No. 134 Rogue 126 Adventurer 0 Explorer 8 Win Type - Total 6 Types 4/0/0/2/0/0/0/0/0 Lore% 51 Gallery% 68 Achievement% 60 Wizard Run 0 Options --------- Layout 0 ASCII 0 Keyboard 0 Movement Mouse Keybinds 0 Fullscreen 2 Font 18/SmallcapsGlow Map View 76x50 Zoom Use 0% Tactical HUD 1 Map Filters NONE Filters NONE Steam 1 RUN: 4ff3fa4a-4bc8-4038-a0fd-652c787e0ade